{"text_format":"3","workbook":"xlsx","n_sheets":1,"sheets":["Buget lunar personal"],"read":"whole","date_system":"1900"}

{"sheet":"Buget lunar personal","index":0,"n_rows":62,"n_cols":10,"rows_kept":62,"merged":[[0,1,0,9],[2,1,4,1],[2,2,2,3],[2,7,2,8],[3,2,3,3],[3,7,3,8],[4,2,4,3],[4,6,4,8],[5,1,7,1],[5,2,5,3],[5,7,5,8],[6,2,6,3],[6,7,6,8],[7,2,7,3],[7,6,7,8],[20,6,20,9],[21,1,21,4],[29,6,29,9],[31,1,31,4],[36,6,36,9],[38,1,38,4],[42,6,42,9],[44,1,44,4],[48,6,48,9],[52,1,52,4],[55,6,55,9]]}
[null,"Buget lunar personal"]
[]
[null,"VENIT LUNAR PROIECTAT","Venit 1",null,{"v":2500,"d":"2,500 lei"},null,"CHELTUIELI TOTALE PROIECTATE ","(Venit proiectat minus cheltuieli)",null,{"$f":"SUM(C21,C31,C38,C44,C52,C62,H20,H29,H36,H42,H48,H55)","v":{"v":2060,"d":"2,060 lei"}}]
[null,null,"Venit suplimentar",null,{"v":500,"d":"500 lei"},null,"CHELTUIELI TOTALE EFECTIVE ","(Venit efectiv minus cheltuielile)",null,{"$f":"SUM(D21,D31,D38,D44,D52,D62,I20,I29,I36,I42,I48,I55)","v":{"v":2040,"d":"2,040 lei"}}]
[null,null,"Total venit lunar",null,{"$f":"SUM(E3:E4)","v":{"v":3000,"d":"3,000 lei"}},null,"Total Diferență cheltuieli ",null,null,{"$f":"SUM(E21,E31,E38,E44,E52,E62,J20,J29,J36,J42,J48,J55)","v":{"v":20,"d":"20 lei"}}]
[null,"VENIT LUNAR EFECTIV","Venit 1",null,{"v":2500,"d":"2,500 lei"},null,"SOLDUL PROIECTAT","(Venit proiectat minus cheltuieli)",null,{"$f":"E5-J3","v":{"v":940,"d":"940 lei"}}]
[null,null,"Venit suplimentar",null,{"v":500,"d":"500 lei"},null,"SOLDUL EFECTIV","(Venit efectiv minus cheltuielile)",null,{"$f":"E8-J4","v":{"v":960,"d":"960 lei"}}]
[null,null,"Total venit lunar",null,{"$f":"SUM(E6:E7)","v":{"v":3000,"d":"3,000 lei"}},null,"DIFERENȚĂ SOLD (efectiv minus proiectat)",null,null,{"$f":"J7-J6","v":{"v":20,"d":"20 lei"}}]
[]
[null,"LOCUINȚĂ","Costul proiectat","Costul efectiv","Diferență",null,"DISTRACȚIE","Costul proiectat","Costul efectiv","Diferență"]
[null,"Credit ipotecar sau chirie",{"v":1500,"d":"1,500 lei"},{"v":1400,"d":"1,400 lei"},{"$f":"Locuință[[#This Row],[Costul proiectat]]-Locuință[[#This Row],[Costul efectiv]]","v":{"v":100,"d":"100 lei"}},null,"Video/DVD",{"v":0,"d":"0 lei"},{"v":50,"d":"50 lei"},{"$f":"Distracție[[#This Row],[Costul proiectat]]-Distracție[[#This Row],[Costul efectiv]]","v":{"v":-50,"d":"-50 lei"}}]
[null,"Telefon",{"v":60,"d":"60 lei"},{"v":100,"d":"100 lei"},{"$f":"Locuință[[#This Row],[Costul proiectat]]-Locuință[[#This Row],[Costul efectiv]]","v":{"v":-40,"d":"-40 lei"}},null,"CD-uri",null,null,{"$f":"Distracție[[#This Row],[Costul proiectat]]-Distracție[[#This Row],[Costul efectiv]]","v":{"v":0,"d":"0 lei"}}]
[null,"Electricitate",{"v":50,"d":"50 lei"},{"v":60,"d":"60 lei"},{"$f":"Locuință[[#This Row],[Costul proiectat]]-Locuință[[#This Row],[Costul efectiv]]","v":{"v":-10,"d":"-10 lei"}},null,"Filme",null,null,{"$f":"Distracție[[#This Row],[Costul proiectat]]-Distracție[[#This Row],[Costul efectiv]]","v":{"v":0,"d":"0 lei"}}]
[null,"Gaze",{"v":200,"d":"200 lei"},{"v":180,"d":"180 lei"},{"$f":"Locuință[[#This Row],[Costul proiectat]]-Locuință[[#This Row],[Costul efectiv]]","v":{"v":20,"d":"20 lei"}},null,"Concerte",null,null,{"$f":"Distracție[[#This Row],[Costul proiectat]]-Distracție[[#This Row],[Costul efectiv]]","v":{"v":0,"d":"0 lei"}}]
[null,"Apă și canalizare",null,null,{"$f":"Locuință[[#This Row],[Costul proiectat]]-Locuință[[#This Row],[Costul efectiv]]","v":{"v":0,"d":"0 lei"}},null,"Evenimente sportive",null,null,{"$f":"Distracție[[#This Row],[Costul proiectat]]-Distracție[[#This Row],[Costul efectiv]]","v":{"v":0,"d":"0 lei"}}]
[null,"Cablu",null,null,{"$f":"Locuință[[#This Row],[Costul proiectat]]-Locuință[[#This Row],[Costul efectiv]]","v":{"v":0,"d":"0 lei"}},null,"Teatru live",null,null,{"$f":"Distracție[[#This Row],[Costul proiectat]]-Distracție[[#This Row],[Costul efectiv]]","v":{"v":0,"d":"0 lei"}}]
[null,"Eliminare reziduri",null,null,{"$f":"Locuință[[#This Row],[Costul proiectat]]-Locuință[[#This Row],[Costul efectiv]]","v":{"v":0,"d":"0 lei"}},null,"Altele",null,null,{"$f":"Distracție[[#This Row],[Costul proiectat]]-Distracție[[#This Row],[Costul efectiv]]","v":{"v":0,"d":"0 lei"}}]
[null,"Întreținere sau reparații",null,null,{"$f":"Locuință[[#This Row],[Costul proiectat]]-Locuință[[#This Row],[Costul efectiv]]","v":{"v":0,"d":"0 lei"}},null,"Altele",null,null,{"$f":"Distracție[[#This Row],[Costul proiectat]]-Distracție[[#This Row],[Costul efectiv]]","v":{"v":0,"d":"0 lei"}}]
[null,"Consumabile",null,null,{"$f":"Locuință[[#This Row],[Costul proiectat]]-Locuință[[#This Row],[Costul efectiv]]","v":{"v":0,"d":"0 lei"}},null,"Altele",null,null,{"$f":"Distracție[[#This Row],[Costul proiectat]]-Distracție[[#This Row],[Costul efectiv]]","v":{"v":0,"d":"0 lei"}}]
[null,"Altele",null,null,{"$f":"Locuință[[#This Row],[Costul proiectat]]-Locuință[[#This Row],[Costul efectiv]]","v":{"v":0,"d":"0 lei"}},null,"Total",{"$f":"SUBTOTAL(109,Distracție[Costul proiectat])","v":{"v":0,"d":"0 lei"}},{"$f":"SUBTOTAL(109,Distracție[Costul efectiv])","v":{"v":50,"d":"50 lei"}},{"$f":"SUBTOTAL(109,Distracție[Diferență])","v":{"v":-50,"d":"-50 lei"}}]
[null,"Total",{"$f":"SUBTOTAL(109,Locuință[Costul proiectat])","v":{"v":1810,"d":"1,810 lei"}},{"$f":"SUBTOTAL(109,Locuință[Costul efectiv])","v":{"v":1740,"d":"1,740 lei"}},{"$f":"SUBTOTAL(109,Locuință[Diferență])","v":{"v":70,"d":"70 lei"}}]
[{"$nulls":6},"ÎMPRUMUTURI","Costul proiectat","Costul efectiv","Diferență"]
[null,"TRANSPORT","Costul proiectat","Costul efectiv","Diferență",null,"Personal",null,null,{"$f":"Împrumuturi[[#This Row],[Costul proiectat]]-Împrumuturi[[#This Row],[Costul efectiv]]","v":{"v":0,"d":"0 lei"}}]
[null,"Plată vehicul",{"v":250,"d":"250 lei"},{"v":250,"d":"250 lei"},{"$f":"Transport[[#This Row],[Costul proiectat]]-Transport[[#This Row],[Costul efectiv]]","v":{"v":0,"d":"0 lei"}},null,"Student",null,null,{"$f":"Împrumuturi[[#This Row],[Costul proiectat]]-Împrumuturi[[#This Row],[Costul efectiv]]","v":{"v":0,"d":"0 lei"}}]
[null,"Tarif autobuz/taxi",null,null,{"$f":"Transport[[#This Row],[Costul proiectat]]-Transport[[#This Row],[Costul efectiv]]","v":{"v":0,"d":"0 lei"}},null,"Card de credit",null,null,{"$f":"Împrumuturi[[#This Row],[Costul proiectat]]-Împrumuturi[[#This Row],[Costul efectiv]]","v":{"v":0,"d":"0 lei"}}]
[null,"Asigurare",null,null,{"$f":"Transport[[#This Row],[Costul proiectat]]-Transport[[#This Row],[Costul efectiv]]","v":{"v":0,"d":"0 lei"}},null,"Card de credit",null,null,{"$f":"Împrumuturi[[#This Row],[Costul proiectat]]-Împrumuturi[[#This Row],[Costul efectiv]]","v":{"v":0,"d":"0 lei"}}]
[null,"Licențiere",null,null,{"$f":"Transport[[#This Row],[Costul proiectat]]-Transport[[#This Row],[Costul efectiv]]","v":{"v":0,"d":"0 lei"}},null,"Card de credit",null,null,{"$f":"Împrumuturi[[#This Row],[Costul proiectat]]-Împrumuturi[[#This Row],[Costul efectiv]]","v":{"v":0,"d":"0 lei"}}]
[null,"Benzină",null,null,{"$f":"Transport[[#This Row],[Costul proiectat]]-Transport[[#This Row],[Costul efectiv]]","v":{"v":0,"d":"0 lei"}},null,"Altele",null,null,{"$f":"Împrumuturi[[#This Row],[Costul proiectat]]-Împrumuturi[[#This Row],[Costul efectiv]]","v":{"v":0,"d":"0 lei"}}]
[null,"Întreținere",null,null,{"$f":"Transport[[#This Row],[Costul proiectat]]-Transport[[#This Row],[Costul efectiv]]","v":{"v":0,"d":"0 lei"}},null,"Total",{"$f":"SUBTOTAL(109,Împrumuturi[Costul proiectat])","v":{"v":0,"d":"0 lei"}},{"$f":"SUBTOTAL(109,Împrumuturi[Costul efectiv])","v":{"v":0,"d":"0 lei"}},{"$f":"SUBTOTAL(109,Împrumuturi[Diferență])","v":{"v":0,"d":"0 lei"}}]
[null,"Altele",null,null,{"$f":"Transport[[#This Row],[Costul proiectat]]-Transport[[#This Row],[Costul efectiv]]","v":{"v":0,"d":"0 lei"}}]
[null,"Total",{"$f":"SUBTOTAL(109,Transport[Costul proiectat])","v":{"v":250,"d":"250 lei"}},{"$f":"SUBTOTAL(109,Transport[Costul efectiv])","v":{"v":250,"d":"250 lei"}},{"$f":"SUBTOTAL(109,Transport[Diferență])","v":{"v":0,"d":"0 lei"}},null,"TAXE","Costul proiectat","Costul efectiv","Diferență"]
[{"$nulls":6},"Regional",null,null,{"$f":"Taxe[[#This Row],[Costul proiectat]]-Taxe[[#This Row],[Costul efectiv]]","v":{"v":0,"d":"0 lei"}}]
[null,"ASIGURARE","Costul proiectat","Costul efectiv","Diferență",null,"Județ",null,null,{"$f":"Taxe[[#This Row],[Costul proiectat]]-Taxe[[#This Row],[Costul efectiv]]","v":{"v":0,"d":"0 lei"}}]
[null,"Pornire",null,null,{"$f":"Asigurare[[#This Row],[Costul proiectat]]-Asigurare[[#This Row],[Costul efectiv]]","v":{"v":0,"d":"0 lei"}},null,"Local",null,null,{"$f":"Taxe[[#This Row],[Costul proiectat]]-Taxe[[#This Row],[Costul efectiv]]","v":{"v":0,"d":"0 lei"}}]
[null,"Sănătate",null,null,{"$f":"Asigurare[[#This Row],[Costul proiectat]]-Asigurare[[#This Row],[Costul efectiv]]","v":{"v":0,"d":"0 lei"}},null,"Altele",null,null,{"$f":"Taxe[[#This Row],[Costul proiectat]]-Taxe[[#This Row],[Costul efectiv]]","v":{"v":0,"d":"0 lei"}}]
[null,"Viață",null,null,{"$f":"Asigurare[[#This Row],[Costul proiectat]]-Asigurare[[#This Row],[Costul efectiv]]","v":{"v":0,"d":"0 lei"}},null,"Total",{"$f":"SUBTOTAL(109,Taxe[Costul proiectat])","v":{"v":0,"d":"0 lei"}},{"$f":"SUBTOTAL(109,Taxe[Costul efectiv])","v":{"v":0,"d":"0 lei"}},{"$f":"SUBTOTAL(109,Taxe[Diferență])","v":{"v":0,"d":"0 lei"}}]
[null,"Altele",null,null,{"$f":"Asigurare[[#This Row],[Costul proiectat]]-Asigurare[[#This Row],[Costul efectiv]]","v":{"v":0,"d":"0 lei"}}]
[null,"Total",{"$f":"SUBTOTAL(109,Asigurare[Costul proiectat])","v":{"v":0,"d":"0 lei"}},{"$f":"SUBTOTAL(109,Asigurare[Costul efectiv])","v":{"v":0,"d":"0 lei"}},{"$f":"SUBTOTAL(109,Asigurare[Diferență])","v":{"v":0,"d":"0 lei"}},null,"ECONOMII SAU INVESTIȚII","Costul proiectat","Costul efectiv","Diferență"]
[{"$nulls":6},"Cont pensionare",null,null,{"$f":"EconomiiSauInvestiție[[#This Row],[Costul proiectat]]-EconomiiSauInvestiție[[#This Row],[Costul efectiv]]","v":{"v":0,"d":"0 lei"}}]
[null,"ALIMENTE","Costul proiectat","Costul efectiv","Diferență",null,"Cont de investiții",null,null,{"$f":"EconomiiSauInvestiție[[#This Row],[Costul proiectat]]-EconomiiSauInvestiție[[#This Row],[Costul efectiv]]","v":{"v":0,"d":"0 lei"}}]
[null,"Articole de băcănie",null,null,{"$f":"Alimente[[#This Row],[Costul proiectat]]-Alimente[[#This Row],[Costul efectiv]]","v":{"v":0,"d":"0 lei"}},null,"Altele",null,null,{"$f":"EconomiiSauInvestiție[[#This Row],[Costul proiectat]]-EconomiiSauInvestiție[[#This Row],[Costul efectiv]]","v":{"v":0,"d":"0 lei"}}]
[null,"Masă în oraș",null,null,{"$f":"Alimente[[#This Row],[Costul proiectat]]-Alimente[[#This Row],[Costul efectiv]]","v":{"v":0,"d":"0 lei"}},null,"Total",{"$f":"SUBTOTAL(109,EconomiiSauInvestiție[Costul proiectat])","v":{"v":0,"d":"0 lei"}},{"$f":"SUBTOTAL(109,EconomiiSauInvestiție[Costul efectiv])","v":{"v":0,"d":"0 lei"}},{"$f":"SUBTOTAL(109,EconomiiSauInvestiție[Diferență])","v":{"v":0,"d":"0 lei"}}]
[null,"Altele",null,null,{"$f":"Alimente[[#This Row],[Costul proiectat]]-Alimente[[#This Row],[Costul efectiv]]","v":{"v":0,"d":"0 lei"}}]
[null,"Total",{"$f":"SUBTOTAL(109,Alimente[Costul proiectat])","v":{"v":0,"d":"0 lei"}},{"$f":"SUBTOTAL(109,Alimente[Costul efectiv])","v":{"v":0,"d":"0 lei"}},{"$f":"SUBTOTAL(109,Alimente[Diferență])","v":{"v":0,"d":"0 lei"}},null,"CADOURI ȘI DONAȚII","Costul proiectat","Costul efectiv","Diferență"]
[{"$nulls":6},"Caritate 1",null,null,{"$f":"CadouriȘiDonații[[#This Row],[Costul proiectat]]-CadouriȘiDonații[[#This Row],[Costul efectiv]]","v":{"v":0,"d":"0 lei"}}]
[null,"ANIMALE DE CASĂ","Costul proiectat","Costul efectiv","Diferență",null,"Caritate 2",null,null,{"$f":"CadouriȘiDonații[[#This Row],[Costul proiectat]]-CadouriȘiDonații[[#This Row],[Costul efectiv]]","v":{"v":0,"d":"0 lei"}}]
[null,"Alimente",null,null,{"$f":"AnimaleDeCasă[[#This Row],[Costul proiectat]]-AnimaleDeCasă[[#This Row],[Costul efectiv]]","v":{"v":0,"d":"0 lei"}},null,"Caritate 3",null,null,{"$f":"CadouriȘiDonații[[#This Row],[Costul proiectat]]-CadouriȘiDonații[[#This Row],[Costul efectiv]]","v":{"v":0,"d":"0 lei"}}]
[null,"Medicale",null,null,{"$f":"AnimaleDeCasă[[#This Row],[Costul proiectat]]-AnimaleDeCasă[[#This Row],[Costul efectiv]]","v":{"v":0,"d":"0 lei"}},null,"Total",{"$f":"SUBTOTAL(109,CadouriȘiDonații[Costul proiectat])","v":{"v":0,"d":"0 lei"}},{"$f":"SUBTOTAL(109,CadouriȘiDonații[Costul efectiv])","v":{"v":0,"d":"0 lei"}},{"$f":"SUBTOTAL(109,CadouriȘiDonații[Diferență])","v":{"v":0,"d":"0 lei"}}]
[null,"Îngrijire",null,null,{"$f":"AnimaleDeCasă[[#This Row],[Costul proiectat]]-AnimaleDeCasă[[#This Row],[Costul efectiv]]","v":{"v":0,"d":"0 lei"}}]
[null,"Jucării",null,null,{"$f":"AnimaleDeCasă[[#This Row],[Costul proiectat]]-AnimaleDeCasă[[#This Row],[Costul efectiv]]","v":{"v":0,"d":"0 lei"}},null,"JURIDIC","Costul proiectat","Costul efectiv","Diferență"]
[null,"Altele",null,null,{"$f":"AnimaleDeCasă[[#This Row],[Costul proiectat]]-AnimaleDeCasă[[#This Row],[Costul efectiv]]","v":{"v":0,"d":"0 lei"}},null,"Avocat",null,null,{"$f":"Juridic[[#This Row],[Costul proiectat]]-Juridic[[#This Row],[Costul efectiv]]","v":{"v":0,"d":"0 lei"}}]
[null,"Total",{"$f":"SUBTOTAL(109,AnimaleDeCasă[Costul proiectat])","v":{"v":0,"d":"0 lei"}},{"$f":"SUBTOTAL(109,AnimaleDeCasă[Costul efectiv])","v":{"v":0,"d":"0 lei"}},{"$f":"SUBTOTAL(109,AnimaleDeCasă[Diferență])","v":{"v":0,"d":"0 lei"}},null,"Pensie",null,null,{"$f":"Juridic[[#This Row],[Costul proiectat]]-Juridic[[#This Row],[Costul efectiv]]","v":{"v":0,"d":"0 lei"}}]
[{"$nulls":6},"Plăți pentru sechestru sau judecată",null,null,{"$f":"Juridic[[#This Row],[Costul proiectat]]-Juridic[[#This Row],[Costul efectiv]]","v":{"v":0,"d":"0 lei"}}]
[null,"ÎNGRIJIRE PERSONALĂ","Costul proiectat","Costul efectiv","Diferență",null,"Altele",null,null,{"$f":"Juridic[[#This Row],[Costul proiectat]]-Juridic[[#This Row],[Costul efectiv]]","v":{"v":0,"d":"0 lei"}}]
[null,"Medicale",null,null,{"$f":"ÎngrijirePersonală[[#This Row],[Costul proiectat]]-ÎngrijirePersonală[[#This Row],[Costul efectiv]]","v":{"v":0,"d":"0 lei"}},null,"Total",{"$f":"SUBTOTAL(109,Juridic[Costul proiectat])","v":{"v":0,"d":"0 lei"}},{"$f":"SUBTOTAL(109,Juridic[Costul efectiv])","v":{"v":0,"d":"0 lei"}},{"$f":"SUBTOTAL(109,Juridic[Diferență])","v":{"v":0,"d":"0 lei"}}]
[null,"Păr/unghii",null,null,{"$f":"ÎngrijirePersonală[[#This Row],[Costul proiectat]]-ÎngrijirePersonală[[#This Row],[Costul efectiv]]","v":{"v":0,"d":"0 lei"}}]
[null,"Îmbrăcăminte",null,null,{"$f":"ÎngrijirePersonală[[#This Row],[Costul proiectat]]-ÎngrijirePersonală[[#This Row],[Costul efectiv]]","v":{"v":0,"d":"0 lei"}}]
[null,"Curățătorie",null,null,{"$f":"ÎngrijirePersonală[[#This Row],[Costul proiectat]]-ÎngrijirePersonală[[#This Row],[Costul efectiv]]","v":{"v":0,"d":"0 lei"}}]
[null,"Club de sănătate",null,null,{"$f":"ÎngrijirePersonală[[#This Row],[Costul proiectat]]-ÎngrijirePersonală[[#This Row],[Costul efectiv]]","v":{"v":0,"d":"0 lei"}}]
[null,"Datoriile sau taxele către organizație",null,null,{"$f":"ÎngrijirePersonală[[#This Row],[Costul proiectat]]-ÎngrijirePersonală[[#This Row],[Costul efectiv]]","v":{"v":0,"d":"0 lei"}}]
[null,"Altele",null,null,{"$f":"ÎngrijirePersonală[[#This Row],[Costul proiectat]]-ÎngrijirePersonală[[#This Row],[Costul efectiv]]","v":{"v":0,"d":"0 lei"}}]
[null,"Total",{"$f":"SUBTOTAL(109,ÎngrijirePersonală[Costul proiectat])","v":{"v":0,"d":"0 lei"}},{"$f":"SUBTOTAL(109,ÎngrijirePersonală[Costul efectiv])","v":{"v":0,"d":"0 lei"}},{"$f":"SUBTOTAL(109,ÎngrijirePersonală[Diferență])","v":{"v":0,"d":"0 lei"}}]